[Event "*** Titled Tuesday 3|2 Blitz"]
[Site "Chess.com"]
[Date "2016.03.01"]
[Round "5"]
[White "vellottiwizard"]
[Black "chessking2151"]
[Result "1-0"]
[WhiteElo "2463"]
[BlackElo "2312"]
[TimeControl "180+2"]
[EndTime "17:57:47 PST"]
[Termination "vellottiwizard won by resignation"]

1. e4 {[%clk 0:02:32.4]} 1... c5 {[%clk 0:03:00.2]} 2. Nf3 {[%clk 0:02:31.2]}
2... Nc6 {[%clk 0:03:01]} 3. d4 {[%clk 0:02:32.7]} 3... cxd4 {[%clk 0:03:02.1]}
4. Nxd4 {[%clk 0:02:34.2]} 4... g6 {[%clk 0:03:03.3]} 5. Nc3 {[%clk 0:02:35.5]}
5... Bg7 {[%clk 0:03:04.5]} 6. Be3 {[%clk 0:02:36.9]} 6... Nf6 {[%clk
0:03:05.8]} 7. Be2 {[%clk 0:02:38.2]} 7... O-O {[%clk 0:03:05.5]} 8. Nb3 {[%clk
0:02:39.5]} 8... d6 {[%clk 0:03:05.8]} 9. O-O {[%clk 0:02:38.5]} 9... a5 {[%clk
0:03:06.5]} 10. a4 {[%clk 0:02:38.7]} 10... Be6 {[%clk 0:03:05.3]} 11. f4 {[%clk
0:02:39.6]} 11... Nd7 {[%clk 0:03:02.1]} 12. Bb5 {[%clk 0:02:27.8]} 12... Nb4
{[%clk 0:02:27]} 13. Nd4 {[%clk 0:02:24.4]} 13... Nc5 {[%clk 0:02:23.1]} 14. f5
{[%clk 0:02:11.5]} 14... Bd7 {[%clk 0:02:20.8]} 15. Bc4 {[%clk 0:02:12.4]} 15...
Rc8 {[%clk 0:02:18.3]} 16. Qe2 {[%clk 0:02:12.7]} 16... Nc6 {[%clk 0:02:07.4]}
17. Rad1 {[%clk 0:02:07.1]} 17... Ne5 {[%clk 0:02:07.1]} 18. Ba2 {[%clk
0:02:07.2]} 18... Nxa4 {[%clk 0:02:03.1]} 19. Nxa4 {[%clk 0:02:08.2]} 19... Bxa4
{[%clk 0:02:05]} 20. Bf4 {[%clk 0:02:09.7]} 20... Qb6 {[%clk 0:02:01.5]} 21. Kh1
{[%clk 0:02:09.5]} 21... Nd7 {[%clk 0:01:58.2]} 22. Be3 {[%clk 0:02:04.1]} 22...
Qxb2 {[%clk 0:01:54.9]} 23. Bd5 {[%clk 0:02:05]} 23... Ne5 {[%clk 0:01:32.1]}
24. Ra1 {[%clk 0:01:57.8]} 24... Bc6 {[%clk 0:01:18.4]} 25. Nxc6 {[%clk
0:01:56.4]} 25... bxc6 {[%clk 0:01:19]} 26. Bb3 {[%clk 0:01:57.4]} 26... c5
{[%clk 0:00:49.4]} 27. Bd5 {[%clk 0:01:57.1]} 27... Nc6 {[%clk 0:00:47.4]} 28.
Rab1 {[%clk 0:01:56.7]} 28... Qc3 {[%clk 0:00:40.1]} 29. Rb3 {[%clk 0:01:56.7]}
29... Qe5 {[%clk 0:00:33.4]} 30. Rb7 {[%clk 0:01:57.1]} 30... Nd4 {[%clk
0:00:25.6]} 31. Qc4 {[%clk 0:01:52.3]} 31... e6 {[%clk 0:00:15.3]} 32. fxe6
{[%clk 0:01:15]} 32... fxe6 {[%clk 0:00:15.2]} 33. Rxf8+ {[%clk 0:01:16.5]}
33... Rxf8 {[%clk 0:00:14]} 34. Bxd4 {[%clk 0:01:18]} 34... cxd4 {[%clk
0:00:14.4]} 35. Bxe6+ {[%clk 0:01:18.4]} 35... Kh8 {[%clk 0:00:15.9]} 36. Bd5
{[%clk 0:01:05]} 36... d3 {[%clk 0:00:13.5]} 37. Rb1 {[%clk 0:01:05.1]} 37... d2
{[%clk 0:00:13.6]} 38. Rd1 {[%clk 0:01:01.5]} 38... Qc3 {[%clk 0:00:08.5]} 39.
Qe2 {[%clk 0:01:00.8]} 39... Bh6 {[%clk 0:00:08.3]} 40. Bb3 {[%clk 0:00:58.6]}
40... Qd4 {[%clk 0:00:09.6]} 41. h3 {[%clk 0:00:56.8]} 41... Rf2 {[%clk
0:00:10.7]} 42. Qg4 {[%clk 0:00:57.7]} 42... Bf8 {[%clk 0:00:10.6]} 43. Qe6
{[%clk 0:00:57.1]} 43... Qg7 {[%clk 0:00:10.9]} 44. Qd5 {[%clk 0:00:56.5]} 44...
Re2 {[%clk 0:00:09.3]} 45. Rxd2 {[%clk 0:00:56.3]} 45... Qa1+ {[%clk 0:00:10.5]}
46. Kh2 {[%clk 0:00:56.7]} 46... Qe5+ {[%clk 0:00:04.7]} 47. Qxe5+ {[%clk
0:00:57.3]} 47... dxe5 {[%clk 0:00:06.6]} 48. Rxe2 {[%clk 0:00:58.9]} 1-0

[Event "*** Titled Tuesday 3|2 Blitz"]
[Site "Chess.com"]
[Date "2016.03.01"]
[Round "5"]
[White "davidarenas1224"]
[Black "GM_Huschenbeth"]
[Result "0-1"]
[WhiteElo "2203"]
[BlackElo "2407"]
[TimeControl "180+2"]
[EndTime "17:58:35 PST"]
[Termination "GM_Huschenbeth won by resignation"]

1. e4 {[%clk 0:03:01.9]} 1... e6 {[%clk 0:03:01.2]} 2. d4 {[%clk 0:03:02.9]}
2... d5 {[%clk 0:03:02.7]} 3. Nc3 {[%clk 0:03:04.5]} 3... Bb4 {[%clk 0:03:03.5]}
4. e5 {[%clk 0:03:05]} 4... c5 {[%clk 0:03:03.8]} 5. a3 {[%clk 0:03:05.8]} 5...
Bxc3+ {[%clk 0:03:05.2]} 6. bxc3 {[%clk 0:03:07.7]} 6... Ne7 {[%clk 0:03:07.1]}
7. Qg4 {[%clk 0:03:08.1]} 7... O-O {[%clk 0:03:07.6]} 8. Bd3 {[%clk 0:03:07.1]}
8... Nbc6 {[%clk 0:03:07.8]} 9. Qh5 {[%clk 0:03:04.6]} 9... Ng6 {[%clk 0:03:09]}
10. Nf3 {[%clk 0:03:02]} 10... Qc7 {[%clk 0:03:08.4]} 11. Bd2 {[%clk 0:02:53]}
11... c4 {[%clk 0:03:04.8]} 12. Bxg6 {[%clk 0:02:53.4]} 12... fxg6 {[%clk
0:03:06.7]} 13. Qg4 {[%clk 0:02:52]} 13... Qf7 {[%clk 0:03:07.9]} 14. h4 {[%clk
0:02:52.3]} 14... Qf5 {[%clk 0:02:53.3]} 15. Qxf5 {[%clk 0:02:53]} 15... Rxf5
{[%clk 0:02:55.2]} 16. Ke2 {[%clk 0:02:51.8]} 16... Bd7 {[%clk 0:02:44.4]} 17.
g4 {[%clk 0:02:52.3]} 17... Rff8 {[%clk 0:02:44.2]} 18. Ne1 {[%clk 0:02:30]}
18... b5 {[%clk 0:02:19.9]} 19. h5 {[%clk 0:02:28.8]} 19... gxh5 {[%clk
0:02:19.7]} 20. Rxh5 {[%clk 0:02:30.7]} 20... Be8 {[%clk 0:02:20.6]} 21. Rh2
{[%clk 0:02:28.7]} 21... Bg6 {[%clk 0:02:20.9]} 22. Ra2 {[%clk 0:02:26.8]} 22...
Rf7 {[%clk 0:02:10.4]} 23. Ng2 {[%clk 0:02:26.1]} 23... Raf8 {[%clk 0:02:09]}
24. Nh4 {[%clk 0:02:22.2]} 24... Be4 {[%clk 0:02:08.2]} 25. Rb2 {[%clk
0:02:20.9]} 25... a6 {[%clk 0:02:09.2]} 26. Be3 {[%clk 0:02:15.5]} 26... h6
{[%clk 0:01:56.5]} 27. Rh3 {[%clk 0:02:02.4]} 27... g5 {[%clk 0:01:51.6]} 28. f3
{[%clk 0:02:03.4]} 28... Bh7 {[%clk 0:01:38.7]} 29. Ng2 {[%clk 0:02:03.9]} 29...
Kg7 {[%clk 0:01:35.9]} 30. Bd2 {[%clk 0:02:04.6]} 30... Ne7 {[%clk 0:01:34.5]}
31. Ne3 {[%clk 0:01:52.3]} 31... Bg6 {[%clk 0:01:33]} 32. Rb1 {[%clk 0:01:50.3]}
32... Nc6 {[%clk 0:01:24.6]} 33. Rbh1 {[%clk 0:01:49.9]} 33... Rh8 {[%clk
0:01:25.9]} 34. Kd1 {[%clk 0:01:48.5]} 34... a5 {[%clk 0:01:25.5]} 35. Ng2
{[%clk 0:01:48.8]} 35... b4 {[%clk 0:01:14.6]} 36. axb4 {[%clk 0:01:46.1]} 36...
axb4 {[%clk 0:01:16.5]} 37. Bxg5 {[%clk 0:01:36.6]} 37... hxg5 {[%clk
0:01:04.3]} 38. Rxh8 {[%clk 0:01:35.3]} 38... bxc3 {[%clk 0:01:06.2]} 39. Rc8
{[%clk 0:01:06.4]} 39... Nxd4 {[%clk 0:01:07]} 40. Rhh8 {[%clk 0:01:07.3]} 40...
Bxc2+ {[%clk 0:01:06.4]} 41. Kc1 {[%clk 0:01:07.1]} 41... Bh7 {[%clk 0:01:05.6]}
42. Ne1 {[%clk 0:00:58.6]} 42... Ra7 {[%clk 0:00:56.4]} 43. Ra8 {[%clk
0:00:57.1]} 43... Rf7 {[%clk 0:00:38.9]} 44. Rhe8 {[%clk 0:00:48.9]} 44... c2
{[%clk 0:00:35.2]} 45. Nxc2 {[%clk 0:00:32.9]} 45... Bxc2 {[%clk 0:00:33.5]} 46.
Rg8+ {[%clk 0:00:33.6]} 46... Kh6 {[%clk 0:00:33.9]} 47. Ra2 {[%clk 0:00:27.2]}
47... Rxf3 {[%clk 0:00:29.8]} 48. Rxc2 {[%clk 0:00:24.6]} 48... Nxc2 {[%clk
0:00:31.5]} 49. Kxc2 {[%clk 0:00:26.5]} 49... Re3 {[%clk 0:00:27.8]} 0-1

[Event "*** Titled Tuesday 3|2 Blitz"]
[Site "Chess.com"]
[Date "2016.03.01"]
[Round "5"]
[White "MMSANCHEZ"]
[Black "Iwannabetheguy"]
[Result "1-0"]
[WhiteElo "2265"]
[BlackElo "2001"]
[TimeControl "180+2"]
[EndTime "17:58:57 PST"]
[Termination "MMSANCHEZ won by resignation"]

1. d4 {[%clk 0:03:01.9]} 1... Nf6 {[%clk 0:03:00]} 2. Nf3 {[%clk 0:03:03.1]}
2... c5 {[%clk 0:03:01.3]} 3. d5 {[%clk 0:03:03.8]} 3... g6 {[%clk 0:02:57]} 4.
Nc3 {[%clk 0:03:04.3]} 4... Bg7 {[%clk 0:02:55.6]} 5. e4 {[%clk 0:03:04.9]} 5...
d6 {[%clk 0:02:54.3]} 6. Bd3 {[%clk 0:03:03.7]} 6... O-O {[%clk 0:02:54.1]} 7.
h3 {[%clk 0:03:04.7]} 7... Nbd7 {[%clk 0:02:52.6]} 8. O-O {[%clk 0:03:05.6]}
8... Ne8 {[%clk 0:02:52.6]} 9. Bf4 {[%clk 0:03:02.9]} 9... Nc7 {[%clk 0:02:52]}
10. Qd2 {[%clk 0:03:03.2]} 10... Rb8 {[%clk 0:02:50.9]} 11. a4 {[%clk
0:03:04.1]} 11... a6 {[%clk 0:02:51.6]} 12. a5 {[%clk 0:03:05.4]} 12... b5
{[%clk 0:02:51]} 13. axb6 {[%clk 0:03:06.3]} 13... Rxb6 {[%clk 0:02:50.3]} 14.
Rab1 {[%clk 0:03:06.6]} 14... Nb5 {[%clk 0:02:45.3]} 15. Na4 {[%clk 0:03:04.4]}
15... Rb8 {[%clk 0:02:40.9]} 16. Bh6 {[%clk 0:02:56.6]} 16... Nb6 {[%clk
0:02:29.2]} 17. Nxb6 {[%clk 0:02:54.4]} 17... Qxb6 {[%clk 0:02:29]} 18. Bxg7
{[%clk 0:02:55.5]} 18... Kxg7 {[%clk 0:02:29.9]} 19. b4 {[%clk 0:02:54]} 19...
Nd4 {[%clk 0:02:23.8]} 20. Nxd4 {[%clk 0:02:48.6]} 20... cxd4 {[%clk 0:02:24.2]}
21. c3 {[%clk 0:02:44.2]} 21... Bd7 {[%clk 0:02:18.6]} 22. Bc4 {[%clk
0:02:41.7]} 22... dxc3 {[%clk 0:02:14]} 23. Qxc3+ {[%clk 0:02:42.7]} 23... Kg8
{[%clk 0:02:14.3]} 24. Qd3 {[%clk 0:02:36]} 24... Bb5 {[%clk 0:02:13.2]} 25.
Rfc1 {[%clk 0:02:36.8]} 25... Bxc4 {[%clk 0:02:12]} 26. Rxc4 {[%clk 0:02:36.9]}
26... Rfc8 {[%clk 0:02:11.3]} 27. Rbc1 {[%clk 0:02:35.3]} 27... Rxc4 {[%clk
0:02:09.9]} 28. Rxc4 {[%clk 0:02:36.1]} 28... h5 {[%clk 0:02:00.3]} 29. Qc3
{[%clk 0:02:33.8]} 29... Kh7 {[%clk 0:01:50.5]} 30. Qf3 {[%clk 0:01:46.2]} 30...
f6 {[%clk 0:01:42.9]} 31. Kh2 {[%clk 0:01:43.1]} 31... a5 {[%clk 0:01:36.9]} 32.
bxa5 {[%clk 0:01:20]} 32... Qxa5 {[%clk 0:01:36.8]} 33. g4 {[%clk 0:01:09.5]}
33... h4 {[%clk 0:01:32]} 34. Rc6 {[%clk 0:00:49.3]} 34... Qa1 {[%clk
0:01:29.2]} 35. Rc7 {[%clk 0:00:49.5]} 35... Qe5+ {[%clk 0:01:29.1]} 36. Kg2
{[%clk 0:00:49.8]} 36... Rb2 {[%clk 0:01:15.3]} 37. Qe3 {[%clk 0:00:50.6]} 37...
g5 {[%clk 0:00:49.6]} 38. Qf3 {[%clk 0:00:38.7]} 38... Kg6 {[%clk 0:00:46.4]}
39. Qf5+ {[%clk 0:00:28.8]} 39... Qxf5 {[%clk 0:00:47.2]} 40. gxf5+ {[%clk
0:00:30.7]} 40... Kf7 {[%clk 0:00:46.2]} 41. Kf3 {[%clk 0:00:31.9]} 41... Rd2
{[%clk 0:00:45.8]} 42. Rc1 {[%clk 0:00:27]} 42... Rb2 {[%clk 0:00:45.7]} 43. Rf1
{[%clk 0:00:27]} 43... Kg7 {[%clk 0:00:43.3]} 44. Kg4 {[%clk 0:00:26.9]} 44...
Kh6 {[%clk 0:00:44.5]} 45. Kf3 {[%clk 0:00:25.4]} 45... Rb3+ {[%clk 0:00:43.9]}
46. Kg2 {[%clk 0:00:26.4]} 46... Rb2 {[%clk 0:00:43.8]} 47. Rc1 {[%clk
0:00:26.4]} 47... Re2 {[%clk 0:00:44.3]} 48. Kf3 {[%clk 0:00:26.7]} 48... Rb2
{[%clk 0:00:37.5]} 49. Rc7 {[%clk 0:00:27.4]} 49... Kh5 {[%clk 0:00:36.5]} 50.
Rxe7 {[%clk 0:00:27.1]} 50... Rb3+ {[%clk 0:00:38]} 51. Kg2 {[%clk 0:00:28.1]}
51... g4 {[%clk 0:00:23.1]} 52. Rh7+ {[%clk 0:00:27.8]} 52... Kg5 {[%clk
0:00:24.5]} 53. Rg7+ {[%clk 0:00:28.7]} 53... Kf4 {[%clk 0:00:26]} 54. Rxg4+
{[%clk 0:00:29.9]} 54... Ke5 {[%clk 0:00:27.2]} 55. Rxh4 {[%clk 0:00:30.7]}
55... Rb2 {[%clk 0:00:28]} 56. Rg4 {[%clk 0:00:31.6]} 56... Rb7 {[%clk
0:00:27.9]} 57. h4 {[%clk 0:00:32.5]} 57... Rh7 {[%clk 0:00:29.4]} 58. Kg3
{[%clk 0:00:33.5]} 58... Rh6 {[%clk 0:00:30.6]} 59. Rg6 {[%clk 0:00:33.1]} 59...
Rh7 {[%clk 0:00:29.6]} 60. f3 {[%clk 0:00:34.2]} 60... Kd4 {[%clk 0:00:30.2]}
61. Rxf6 {[%clk 0:00:32.8]} 61... Ke3 {[%clk 0:00:28.9]} 62. Kg4 {[%clk
0:00:28.5]} 1-0

[Event "*** Titled Tuesday 3|2 Blitz"]
[Site "Chess.com"]
[Date "2016.03.01"]
[Round "5"]
[White "chessdude"]
[Black "Dlugy"]
[Result "1/2-1/2"]
[WhiteElo "2394"]
[BlackElo "2600"]
[TimeControl "180+2"]
[EndTime "17:59:26 PST"]
[Termination "Game drawn - insufficient material"]

1. e4 {[%clk 0:03:01.4]} 1... c5 {[%clk 0:03:00.5]} 2. Nf3 {[%clk 0:03:02.9]}
2... d6 {[%clk 0:03:01.9]} 3. d4 {[%clk 0:03:03.1]} 3... cxd4 {[%clk 0:03:03.5]}
4. Nxd4 {[%clk 0:03:04.7]} 4... Nf6 {[%clk 0:03:05.1]} 5. Nc3 {[%clk 0:03:06.3]}
5... Nc6 {[%clk 0:03:06.7]} 6. Bg5 {[%clk 0:03:06.7]} 6... e6 {[%clk 0:03:08.3]}
7. Qd2 {[%clk 0:03:07.8]} 7... a6 {[%clk 0:03:10]} 8. O-O-O {[%clk 0:03:08.2]}
8... h6 {[%clk 0:03:11.6]} 9. Be3 {[%clk 0:03:06.6]} 9... Nxd4 {[%clk
0:03:12.3]} 10. Bxd4 {[%clk 0:03:04.3]} 10... b5 {[%clk 0:03:13.4]} 11. Bd3
{[%clk 0:03:03.9]} 11... Be7 {[%clk 0:03:13.6]} 12. f3 {[%clk 0:03:03.8]} 12...
Bb7 {[%clk 0:03:14.5]} 13. Kb1 {[%clk 0:03:03.5]} 13... O-O {[%clk 0:03:15.4]}
14. g4 {[%clk 0:03:04.5]} 14... b4 {[%clk 0:03:16.7]} 15. Ne2 {[%clk 0:03:05.1]}
15... e5 {[%clk 0:03:18.3]} 16. Be3 {[%clk 0:03:06.1]} 16... d5 {[%clk
0:03:19.8]} 17. exd5 {[%clk 0:03:01.7]} 17... Bxd5 {[%clk 0:02:43.2]} 18. Rhf1
{[%clk 0:02:45.1]} 18... Qa5 {[%clk 0:02:39.2]} 19. b3 {[%clk 0:02:44.6]} 19...
Rfd8 {[%clk 0:02:40.2]} 20. Qe1 {[%clk 0:02:33.8]} 20... e4 {[%clk 0:02:23.5]}
21. fxe4 {[%clk 0:02:32.8]} 21... Nxe4 {[%clk 0:02:25.1]} 22. Rf5 {[%clk
0:02:09.3]} 22... Nc3+ {[%clk 0:02:20.4]} 23. Nxc3 {[%clk 0:02:09.5]} 23... bxc3
{[%clk 0:02:22]} 24. Bc4 {[%clk 0:01:52.8]} 24... Bh4 {[%clk 0:01:45.2]} 25.
Qxh4 {[%clk 0:01:07.3]} 25... Bxc4 {[%clk 0:01:36]} 26. Rxd8+ {[%clk 0:00:46]}
26... Qxd8 {[%clk 0:01:33.7]} 27. Qxd8+ {[%clk 0:00:47.4]} 27... Rxd8 {[%clk
0:01:35.3]} 28. bxc4 {[%clk 0:00:48.8]} 28... Rd1+ {[%clk 0:01:35.4]} 29. Bc1
{[%clk 0:00:49.8]} 29... Rd4 {[%clk 0:01:36.5]} 30. c5 {[%clk 0:00:49.5]} 30...
Rb4+ {[%clk 0:01:35.9]} 31. Ka1 {[%clk 0:00:50.4]} 31... Rxg4 {[%clk 0:01:37.2]}
32. a3 {[%clk 0:00:46.7]} 32... Kf8 {[%clk 0:01:36.7]} 33. Re5 {[%clk
0:00:46.8]} 33... f6 {[%clk 0:01:34.6]} 34. Re6 {[%clk 0:00:45.1]} 34... Rc4
{[%clk 0:01:28.9]} 35. Be3 {[%clk 0:00:44.3]} 35... f5 {[%clk 0:01:29.6]} 36.
Ka2 {[%clk 0:00:42.4]} 36... Kf7 {[%clk 0:01:27.3]} 37. Kb3 {[%clk 0:00:40.6]}
37... Rh4 {[%clk 0:01:28.4]} 38. Rxa6 {[%clk 0:00:39.9]} 38... f4 {[%clk
0:01:28.5]} 39. Bg1 {[%clk 0:00:34.9]} 39... Rg4 {[%clk 0:01:29.3]} 40. c6
{[%clk 0:00:32.5]} 40... Ke6 {[%clk 0:01:27.8]} 41. c7+ {[%clk 0:00:32]} 41...
Kd7 {[%clk 0:01:29]} 42. Bb6 {[%clk 0:00:32.6]} 42... Rg6 {[%clk 0:01:25.9]} 43.
Kxc3 {[%clk 0:00:28.8]} 43... f3 {[%clk 0:01:26.7]} 44. Ra8 {[%clk 0:00:27.3]}
44... Rc6+ {[%clk 0:01:27.2]} 45. Kd2 {[%clk 0:00:28.1]} 45... f2 {[%clk
0:01:25.6]} 46. Rd8+ {[%clk 0:00:29.4]} 46... Ke7 {[%clk 0:01:26.7]} 47. Bxf2
{[%clk 0:00:29.2]} 47... Rxc7 {[%clk 0:01:28.2]} 48. Rd3 {[%clk 0:00:30]} 48...
Rc4 {[%clk 0:01:28.4]} 49. Bd4 {[%clk 0:00:30.2]} 49... g5 {[%clk 0:01:29.5]}
50. Bc3 {[%clk 0:00:22.2]} 50... h5 {[%clk 0:01:30.3]} 51. h3 {[%clk 0:00:23.1]}
51... Ke6 {[%clk 0:01:31]} 52. Bb4 {[%clk 0:00:24.1]} 52... g4 {[%clk
0:01:30.6]} 53. hxg4 {[%clk 0:00:24.2]} 53... Rxg4 {[%clk 0:01:31.6]} 54. c3
{[%clk 0:00:24.1]} 54... h4 {[%clk 0:01:32.9]} 55. a4 {[%clk 0:00:24.9]} 55...
Rg2+ {[%clk 0:01:33.4]} 56. Ke3 {[%clk 0:00:19.3]} 56... Kf5 {[%clk 0:01:35.3]}
57. Kd4 {[%clk 0:00:20.1]} 57... Kg4 {[%clk 0:01:35.9]} 58. a5 {[%clk
0:00:20.7]} 58... h3 {[%clk 0:01:36.9]} 59. Rxh3 {[%clk 0:00:21.3]} 59... Kxh3
{[%clk 0:01:37.8]} 60. Kc5 {[%clk 0:00:21.3]} 60... Kg4 {[%clk 0:01:39]} 61. a6
{[%clk 0:00:22.3]} 61... Kf5 {[%clk 0:01:39.9]} 62. Kb6 {[%clk 0:00:23.2]} 62...
Rg6+ {[%clk 0:01:40.8]} 63. Kb7 {[%clk 0:00:22]} 63... Rg7+ {[%clk 0:01:42]} 64.
Kc6 {[%clk 0:00:22.9]} 64... Ke4 {[%clk 0:01:37.8]} 65. Bc5 {[%clk 0:00:18.9]}
65... Kd3 {[%clk 0:01:37.8]} 66. Bd4 {[%clk 0:00:20.1]} 66... Rh7 {[%clk
0:01:30.9]} 67. Kb5 {[%clk 0:00:21.2]} 67... Rh5+ {[%clk 0:01:31.4]} 68. Kb4
{[%clk 0:00:22.4]} 68... Rh7 {[%clk 0:01:21.7]} 69. a7 {[%clk 0:00:21.9]} 69...
Rb7+ {[%clk 0:01:22.6]} 70. Bb6 {[%clk 0:00:10.6]} 70... Rxb6+ {[%clk
0:01:23.6]} 71. Ka5 {[%clk 0:00:11.9]} 71... Rb3 {[%clk 0:01:23.7]} 72. Ka6
{[%clk 0:00:11.3]} 72... Kxc3 {[%clk 0:01:22.6]} 73. a8=Q {[%clk 0:00:11.1]}
73... Ra3+ {[%clk 0:01:23.7]} 74. Kb7 {[%clk 0:00:12.5]} 74... Rxa8 {[%clk
0:01:24.7]} 75. Kxa8 {[%clk 0:00:14.1]} 1/2-1/2

[Event "*** Titled Tuesday 3|2 Blitz"]
[Site "Chess.com"]
[Date "2016.03.01"]
[Round "5"]
[White "Aygehovit1992"]
[Black "tigra"]
[Result "1/2-1/2"]
[WhiteElo "2412"]
[BlackElo "2404"]
[TimeControl "180+2"]
[EndTime "18:00:03 PST"]
[Termination "Game drawn by agreement"]

1. e4 {[%clk 0:03:01.9]} 1... c5 {[%clk 0:03:00.4]} 2. Nf3 {[%clk 0:03:01.5]}
2... Nc6 {[%clk 0:03:01.2]} 3. Bb5 {[%clk 0:03:02]} 3... g6 {[%clk 0:03:02.3]}
4. Bxc6 {[%clk 0:03:02.2]} 4... dxc6 {[%clk 0:03:04]} 5. d3 {[%clk 0:03:01.2]}
5... Bg7 {[%clk 0:03:05.1]} 6. h3 {[%clk 0:03:02.5]} 6... Nf6 {[%clk 0:03:06.1]}
7. Nc3 {[%clk 0:03:03.7]} 7... b6 {[%clk 0:03:07.2]} 8. Be3 {[%clk 0:03:04.8]}
8... e5 {[%clk 0:03:06.2]} 9. Qd2 {[%clk 0:03:05.9]} 9... Nd7 {[%clk 0:03:03.9]}
10. Bh6 {[%clk 0:03:06]} 10... O-O {[%clk 0:03:04.4]} 11. O-O-O {[%clk
0:02:56.3]} 11... f6 {[%clk 0:03:05]} 12. Bxg7 {[%clk 0:02:56.1]} 12... Kxg7
{[%clk 0:03:05.8]} 13. g4 {[%clk 0:02:56.8]} 13... Re8 {[%clk 0:03:01.8]} 14. h4
{[%clk 0:02:57.3]} 14... Nf8 {[%clk 0:03:02.6]} 15. Rdg1 {[%clk 0:02:56.6]}
15... Ne6 {[%clk 0:03:00]} 16. Nd1 {[%clk 0:02:55.7]} 16... Nf4 {[%clk 0:02:53]}
17. Ne3 {[%clk 0:02:52.1]} 17... Be6 {[%clk 0:02:51.4]} 18. Kb1 {[%clk
0:02:51.9]} 18... a5 {[%clk 0:02:31.8]} 19. g5 {[%clk 0:02:51.8]} 19... h6
{[%clk 0:01:58.5]} 20. gxh6+ {[%clk 0:02:06.8]} 20... Kh7 {[%clk 0:01:59]} 21.
Ng2 {[%clk 0:02:02]} 21... Nh5 {[%clk 0:01:59.2]} 22. Ne3 {[%clk 0:01:56.1]}
22... Ra7 {[%clk 0:01:58.8]} 23. Qc3 {[%clk 0:01:39.1]} 23... Bf7 {[%clk
0:01:58.1]} 24. Ng4 {[%clk 0:01:26.9]} 24... a4 {[%clk 0:01:52.5]} 25. a3 {[%clk
0:01:25.9]} 25... Rd7 {[%clk 0:01:49.4]} 26. Ngxe5 {[%clk 0:00:56]} 26... fxe5
{[%clk 0:01:49]} 27. Nxe5 {[%clk 0:00:57]} 27... Rc7 {[%clk 0:01:41.5]} 28. Nf3
{[%clk 0:00:52.8]} 28... Qf6 {[%clk 0:01:39.8]} 29. Ng5+ {[%clk 0:00:49.2]}
29... Kxh6 {[%clk 0:01:39.4]} 30. Qd2 {[%clk 0:00:30.2]} 30... Qf4 {[%clk
0:01:40.1]} 31. Qd1 {[%clk 0:00:30.3]} 31... Rf8 {[%clk 0:01:34.3]} 32. Rg4
{[%clk 0:00:28.7]} 32... Qxf2 {[%clk 0:01:33.1]} 33. Rhg1 {[%clk 0:00:29.6]}
33... Be8 {[%clk 0:00:17.4]} 34. Ne6 {[%clk 0:00:30.3]} 34... Re7 {[%clk
0:00:18.3]} 35. Nxf8 {[%clk 0:00:27.3]} 35... Qxf8 {[%clk 0:00:18.8]} 36. Rf1
{[%clk 0:00:21.5]} 36... Rf7 {[%clk 0:00:17.3]} 37. Rxg6+ {[%clk 0:00:14.7]}
37... Kxg6 {[%clk 0:00:18.1]} 38. Qg4+ {[%clk 0:00:15.3]} 38... Kh7 {[%clk
0:00:18.7]} 39. Qxh5+ {[%clk 0:00:16.2]} 39... Kg8 {[%clk 0:00:19.9]} 40. Qg5+
{[%clk 0:00:05.9]} 40... Qg7 {[%clk 0:00:20.5]} 41. Rxf7 {[%clk 0:00:03.4]}
41... Qxg5 {[%clk 0:00:19.3]} 42. hxg5 {[%clk 0:00:04.5]} 42... Kxf7 {[%clk
0:00:20.1]} 43. b3 {[%clk 0:00:04.1]} 43... axb3 {[%clk 0:00:20]} 44. cxb3
{[%clk 0:00:05.5]} 44... Kg6 {[%clk 0:00:18.9]} 45. Kc2 {[%clk 0:00:06.7]} 45...
Kxg5 {[%clk 0:00:19.9]} 46. Kc3 {[%clk 0:00:08.4]} 46... Kf6 {[%clk 0:00:20.7]}
47. d4 {[%clk 0:00:07.8]} 47... cxd4+ {[%clk 0:00:21.3]} 48. Kxd4 {[%clk
0:00:09.2]} 48... Ke6 {[%clk 0:00:22.9]} 49. b4 {[%clk 0:00:10]} 49... Kd6
{[%clk 0:00:23.8]} 50. e5+ {[%clk 0:00:11.4]} 50... Ke6 {[%clk 0:00:24.8]} 51.
a4 {[%clk 0:00:12.9]} 51... Bd7 {[%clk 0:00:25.2]} 52. a5 {[%clk 0:00:13.1]}
52... bxa5 {[%clk 0:00:05.6]} 53. bxa5 {[%clk 0:00:13.8]} 53... Bc8 {[%clk
0:00:06.3]} 54. Kc5 {[%clk 0:00:15.1]} 54... Bb7 {[%clk 0:00:04.9]} 55. Kb6
{[%clk 0:00:15.3]} 55... Ba8 {[%clk 0:00:06]} 56. a6 {[%clk 0:00:14.7]} 56...
Kxe5 {[%clk 0:00:03.1]} 57. Ka7 {[%clk 0:00:13.6]} 57... c5 {[%clk 0:00:04.3]}
58. Kxa8 {[%clk 0:00:15]} 58... c4 {[%clk 0:00:05.6]} 59. a7 {[%clk 0:00:16.5]}
59... c3 {[%clk 0:00:06.7]} 60. Kb7 {[%clk 0:00:18.1]} 60... c2 {[%clk
0:00:08.1]} 61. a8=Q {[%clk 0:00:19.6]} 61... c1=Q {[%clk 0:00:08.7]} 62. Qe8+
{[%clk 0:00:20.4]} 62... Kd6 {[%clk 0:00:09.2]} 63. Qd8+ {[%clk 0:00:19.6]}
1/2-1/2

[Event "*** Titled Tuesday 3|2 Blitz"]
[Site "Chess.com"]
[Date "2016.03.01"]
[Round "6"]
[White "FairChess_on_YouTube"]
[Black "Hikaru"]
[Result "1/2-1/2"]
[WhiteElo "2766"]
[BlackElo "2864"]
[TimeControl "180+2"]
[EndTime "18:08:56 PST"]
[Termination "Game drawn by agreement"]

1. d4 {[%clk 0:03:01.9]} 1... Nf6 {[%clk 0:02:58.2]} 2. c4 {[%clk 0:03:03]} 2...
e6 {[%clk 0:02:59.3]} 3. Nf3 {[%clk 0:03:02.8]} 3... d5 {[%clk 0:03:00.4]} 4.
Nc3 {[%clk 0:03:03.2]} 4... Be7 {[%clk 0:03:01.7]} 5. Bg5 {[%clk 0:03:03.9]}
5... h6 {[%clk 0:03:02.3]} 6. Bf4 {[%clk 0:03:04.4]} 6... O-O {[%clk 0:03:01.1]}
7. e3 {[%clk 0:03:05.6]} 7... Nbd7 {[%clk 0:03:01.1]} 8. c5 {[%clk 0:03:05.7]}
8... b6 {[%clk 0:02:58]} 9. b4 {[%clk 0:03:04.4]} 9... a5 {[%clk 0:02:59]} 10.
a3 {[%clk 0:03:05.1]} 10... c6 {[%clk 0:03:00.5]} 11. Be2 {[%clk 0:02:53.8]}
11... Ba6 {[%clk 0:02:59.5]} 12. O-O {[%clk 0:02:54.3]} 12... Qc8 {[%clk
0:02:59.5]} 13. h3 {[%clk 0:02:44.9]} 13... Bxe2 {[%clk 0:02:56]} 14. Qxe2
{[%clk 0:02:45.6]} 14... Qb7 {[%clk 0:02:57.1]} 15. Rfb1 {[%clk 0:02:40.3]}
15... axb4 {[%clk 0:02:58.1]} 16. axb4 {[%clk 0:02:41.2]} 16... Rfc8 {[%clk
0:02:53.4]} 17. Qc2 {[%clk 0:02:34.8]} 17... Bd8 {[%clk 0:02:51.6]} 18. Ne5
{[%clk 0:02:26.2]} 18... Nxe5 {[%clk 0:02:51.1]} 19. Bxe5 {[%clk 0:02:28.1]}
19... Nd7 {[%clk 0:02:49]} 20. Bd6 {[%clk 0:02:28]} 20... Bc7 {[%clk 0:02:48.1]}
21. Bxc7 {[%clk 0:02:15.6]} 21... Qxc7 {[%clk 0:02:50]} 22. Qb2 {[%clk
0:01:55.7]} 22... e5 {[%clk 0:02:44.4]} 23. Rxa8 {[%clk 0:01:41.8]} 23... Rxa8
{[%clk 0:02:46.3]} 24. Ra1 {[%clk 0:01:43.3]} 24... Re8 {[%clk 0:02:46.7]} 25.
Ne2 {[%clk 0:01:32.8]} 25... exd4 {[%clk 0:02:40.5]} 26. Nxd4 {[%clk 0:01:34.7]}
26... bxc5 {[%clk 0:02:09.6]} 27. bxc5 {[%clk 0:01:36.6]} 27... Qe5 {[%clk
0:02:10.4]} 28. Qb7 {[%clk 0:01:31.5]} 28... Nxc5 {[%clk 0:02:11.1]} 29. Qxc6
{[%clk 0:01:30.8]} 29... Ne4 {[%clk 0:02:12.8]} 30. Ra8 {[%clk 0:01:24.9]} 30...
Rxa8 {[%clk 0:02:13.6]} 31. Qxa8+ {[%clk 0:01:26.8]} 31... Kh7 {[%clk
0:02:15.3]} 1/2-1/2